bitfinex-derivatives/quotes_SOLF0:USTF0_20250505
["timestamp","ask_amount","ask_price","bid_price","bid_amount"]
[1746467932377,6.8573,145.85,145.83,6.8581]
[1746467936084,6.8581,145.84,145.82,7.8585]
[1746467938782,6.8576,145.85,145.83,6.8583]
[1746467939482,6.8576,145.85,145.82,7.8585]
[1746467941081,6.8576,145.85,145.83,6.8583]
[1746467947986,31.43497488,145.87,145.82,1.0]
[1746467948184,7.34929629,145.86,145.82,1.0]
[1746467949389,6.8582,145.84,145.82,1.0]
[1746467949982,6.8582,145.84,145.82,7.8586]
[1746467950182,6.8576,145.85,145.82,1.0]
[1746467951288,6.8576,145.85,145.83,6.858]
[1746467954491,6.8571,145.86,145.83,6.858]
[1746467954789,31.42838367,145.87,145.83,6.858]
[1746467955888,6.8575,145.85,145.83,6.858]
[1746467957492,6.8578,145.84,145.82,7.8586]
[1746467960096,6.8578,145.84,145.83,6.8583]
[1746467960492,6.8578,145.84,145.82,1.0]
[1746467961193,6.8578,145.84,145.82,7.8585]
[1746467965398,6.8576,145.85,145.83,6.8583]
[1746467966797,6.8578,145.84,145.83,6.8583]
[1746467967899,6.8578,145.84,145.82,7.8586]
[1746467968194,31.42838367,145.87,145.82,7.8586]
[1746467968496,6.858,145.84,145.82,7.8586]
[1746467969697,7.34895896,145.86,145.82,1.0]
[1746467970101,6.8583,145.83,145.82,1.0]
[1746467970798,6.858,145.84,145.82,7.8587]
[1746467971397,6.858,145.84,145.82,8.8587]
[1746467977104,7.34862782,145.86,145.82,2.0]
[1746467977307,6.8583,145.83,145.82,2.0]
[1746467982019,30.9183,145.83,145.82,2.0]
[1746467985224,24.06,145.83,145.82,2.0]
[1746467986927,24.06,145.83,145.82,8.8587]
[1746467988429,24.06,145.83,145.82,2.0]
[1746467990025,30.9183,145.83,145.82,2.0]
[1746467997032,24.06,145.83,145.82,8.8587]
[1746467999044,14.20897557,145.84,145.82,8.8587]
[1746468000339,6.8576,145.85,145.83,6.8583]
[1746468000543,31.41097557,145.86,145.82,2.0]
[1746468000746,38.26817557,145.86,145.83,6.8582]
[1746468001040,38.26817557,145.86,145.82,2.0]
[1746468001243,31.41097557,145.86,145.82,2.0]
[1746468001442,24.06,145.86,145.82,2.0]
[1746468002241,24.06,145.86,145.85,6.8573]
[1746468002436,26.69044,145.88,145.85,7.35097557]
[1746468002746,26.69044,145.88,145.87,7.35097557]
[1746468002942,2.1523,145.94,145.87,7.35097557]
[1746468003138,9.50327557,145.94,145.87,7.35097557]
[1746468003338,14.20447557,145.94,145.87,7.35097557]
[1746468003742,7.35097557,145.94,145.87,7.35097557]
[1746468004043,7.35097557,145.94,145.89,7.35097557]
[1746468004347,14.20437557,145.94,145.91,6.8544]
[1746468004744,7.35097557,145.94,145.89,7.35097557]
[1746468005044,6.8538,145.93,145.9,6.8548]
[1746468005848,7.35097557,145.93,145.87,7.35097557]
[1746468006151,24.06,145.95,145.87,7.35097557]
[1746468006340,6.8534,145.94,145.91,6.8545]
[1746468006642,31.41097557,145.95,145.91,6.8545]
[1746468006847,31.41097557,145.95,145.9,6.8548]
[1746468006848,6.8537,145.93,145.9,6.8548]
[1746468007049,31.41097557,145.95,145.9,6.8548]
[1746468007242,6.8543,145.92,145.89,14.20617557]
[1746468007550,7.35097557,145.93,145.85,24.06]
[1746468007845,7.35097557,145.93,145.89,6.8553]
[1746468008248,6.8543,145.92,145.89,6.8553]
[1746468009049,6.8546,145.91,145.89,6.8553]
[1746468009648,6.8546,145.91,145.88,6.8557]
[1746468009838,6.855,145.9,145.86,7.35097557]
[1746468010351,24.06,145.95,145.86,7.35097557]
[1746468010548,7.35097557,145.94,145.88,7.35097557]
[1746468010747,7.35097557,145.94,145.89,6.8552]
[1746468010948,7.35097557,145.94,145.88,7.35097557]
[1746468011247,7.35097557,145.94,145.88,14.20667557]
[1746468011453,6.8548,145.91,145.88,14.20667557]
[1746468011847,7.35097557,145.92,145.87,6.8562]
[1746468012050,7.35097557,145.9,145.85,24.06]
[1746468012350,7.35097557,145.88,145.83,6.858]
[1746468012546,6.8574,145.85,145.83,6.858]
[1746468012746,6.8574,145.85,145.82,26.04]
[1746468012955,7.35097557,145.86,145.82,26.04]
[1746468013254,7.35097557,145.84,145.82,2.0]
[1746468013655,6.8583,145.83,145.82,2.0]
[1746468021461,11.48588672,145.84,145.77,6.8609]
[1746468021657,6.8603,145.79,145.77,6.8609]
[1746468021852,6.8603,145.79,145.76,31.9013]
[1746468022656,6.8599,145.8,145.77,6.861]
[1746468024358,11.48588672,145.81,145.76,1.0]
[1746468025063,6.8611,145.77,145.76,1.0]
[1746468026463,30.9009,145.78,145.76,1.0]
[1746468026968,6.8611,145.77,145.76,1.0]
[1746468027861,30.9007,145.78,145.76,1.0]
[1746468028064,24.04,145.78,145.76,1.0]
[1746468028465,30.9007,145.78,145.76,7.8613]
[1746468029365,6.8607,145.78,145.76,7.8613]
[1746468030068,6.8604,145.79,145.76,7.8613]
[1746468030460,24.04,145.81,145.76,1.0]
[1746468030767,30.8996,145.81,145.76,1.0]
[1746468030968,24.04,145.81,145.76,1.0]
[1746468031169,24.04,145.84,145.76,1.0]
[1746468031364,24.04,145.84,145.77,6.3162]
[1746468031564,6.8584,145.83,145.77,6.3162]
[1746468031766,6.8584,145.83,145.78,24.04]
[1746468031966,6.8593,145.81,145.78,30.9002]
[1746468032269,24.04,145.84,145.76,1.0]
[1746468032668,6.8602,145.8,145.77,6.8609]
[1746468032867,24.04,145.84,145.76,1.0]
[1746468033262,6.8605,145.79,145.76,7.8614]
[1746468033568,24.04,145.84,145.76,1.0]
[1746468033966,6.8599,145.8,145.78,6.8606]
[1746468034266,24.04,145.84,145.78,6.8606]
[1746468034569,6.8599,145.8,145.78,6.8606]
[1746468037069,24.04,145.84,145.76,2.0]
[1746468037880,6.8596,145.81,145.78,6.8602]
[1746468038876,6.8596,145.81,145.79,6.8601]
[1746468040081,6.8589,145.82,145.79,6.8601]
[1746468040275,6.8589,145.82,145.76,2.0]
[1746468040681,6.8585,145.83,145.76,2.0]
[1746468040982,24.04,145.84,145.8,6.8594]
[1746468041682,6.8591,145.82,145.8,6.8594]
[1746468041882,6.8591,145.82,145.79,6.86]
[1746468042782,6.8593,145.81,145.79,6.86]
[1746468043581,6.859,145.82,145.79,6.86]
[1746468047886,6.859,145.82,145.8,6.8596]
[1746468048583,6.8584,145.83,145.81,6.8592]
[1746468048789,24.04,145.84,145.76,2.0]
[1746468048986,24.04,145.84,145.77,5.9101]
[1746468049178,25.9874,145.87,145.77,5.9101]
[1746468049584,25.9874,145.87,145.77,3.9332]
[1746468049782,25.9874,145.87,145.79,6.8599]
[1746468050389,6.8591,145.82,145.79,6.8599]
[1746468050690,25.9874,145.87,145.79,6.8599]
[1746468050886,11.48988934,145.84,145.76,2.0]
[1746468051088,37.61022268,145.83,145.76,2.0]
[1746468051286,37.59055454,145.82,145.76,2.0]
[1746468051687,39.68205454,145.82,145.76,2.0]
[1746468051995,6.8611,145.77,145.76,2.0]
[1746468057294,24.04,145.78,145.76,2.0]
[1746468057893,30.9008,145.78,145.76,2.0]
[1746468060596,30.9007,145.78,145.76,8.8615]
[1746468060796,30.9007,145.78,145.76,2.0]
[1746468062202,6.8611,145.77,145.76,2.0]
[1746468062800,24.04,145.78,145.76,2.0]
[1746468063300,30.9009,145.78,145.76,2.0]
[1746468063496,24.04,145.78,145.76,2.0]
[1746468063996,6.8611,145.77,145.76,2.0]
[1746468082914,6.8627,145.74,145.71,8.8637]
[1746468083812,6.8635,145.72,145.71,2.0]
[1746468084117,11.49922007,145.73,145.64,1.0]
[1746468085418,6.8637,145.72,145.64,1.0]
[1746468085618,24.04,145.74,145.64,12.49922007]
[1746468085922,30.9026,145.74,145.69,6.8645]
[1746468086119,24.04,145.74,145.67,24.04]
[1746468087219,24.04,145.74,145.71,6.8636]
[1746468087716,24.04,145.74,145.72,6.8632]
[1746468088216,24.04,145.74,145.73,6.863]
[1746468088820,24.04,145.74,145.68,6.0131]
[1746468089119,30.9025,145.74,145.68,6.0131]
[1746468089615,30.9025,145.74,145.72,6.8632]
[1746468089821,24.04,145.74,145.68,6.0131]
[1746468090220,24.04,145.74,145.73,6.863]
[1746468092422,24.04,145.74,145.72,6.8633]
[1746468093823,30.9026,145.74,145.72,6.8633]
[1746468095023,24.04,145.74,145.72,6.8633]
[1746468095223,24.04,145.74,145.73,6.863]
[1746468097425,6.862,145.75,145.73,6.863]
[1746468098527,6.862,145.75,145.72,6.8632]
[1746468101230,6.862,145.75,145.73,6.8629]
[1746468101426,6.862,145.75,145.69,1.0]
[1746468101726,6.862,145.75,145.72,6.8632]
[1746468101923,6.8626,145.74,145.72,6.8632]
[1746468102222,26.0953,145.77,145.69,1.0]
[1746468102524,6.8631,145.73,145.69,1.0]
[1746468102826,6.8631,145.73,145.71,6.8639]
[1746468103029,6.8623,145.75,145.69,1.0]
[1746468103228,24.04,145.77,145.69,1.0]
[1746468103630,6.8617,145.76,145.7,1.97]
[1746468103831,6.8617,145.76,145.74,6.8623]
[1746468105229,6.862,145.75,145.73,6.8627]
[1746468106327,24.04,145.77,145.71,24.04]
[1746468106631,24.04,145.77,145.69,1.0]
[1746468106824,24.04,145.77,145.7,6.8643]
[1746468108725,24.04,145.77,145.69,7.8646]
[1746468109328,11.49922007,145.76,145.69,7.8646]
[1746468109530,13.65292007,145.76,145.69,7.8646]
[1746468109830,6.8638,145.72,145.69,7.8646]
[1746468110833,6.8641,145.71,145.69,1.0]
[1746468112139,6.8636,145.72,145.69,1.0]
[1746468112437,6.8636,145.72,145.69,7.8646]
[1746468115543,30.9032,145.73,145.69,1.0]
[1746468115737,24.04,145.73,145.69,1.0]
[1746468116238,24.04,145.73,145.72,6.8635]
[1746468118155,24.04,145.73,145.69,1.0]
[1746468118444,6.8642,145.71,145.69,1.0]
[1746468118644,35.53922007,145.73,145.69,1.0]
[1746468119149,6.8644,145.7,145.69,1.0]
[1746468126163,6.8661,145.67,145.64,7.867]
[1746468127162,6.8664,145.66,145.64,7.867]
[1746468127463,24.04,145.69,145.64,1.0]
[1746468127663,6.8668,145.65,145.64,1.0]
[1746468127964,24.04,145.69,145.64,7.8669]
[1746468128156,6.8657,145.68,145.64,1.0]
[1746468128356,24.04,145.69,145.64,1.0]
[1746468128559,24.04,145.69,145.67,6.8655]
[1746468130152,24.04,145.69,145.66,6.8661]
[1746468131568,6.8653,145.68,145.66,6.8661]
[1746468135366,24.04,145.69,145.67,6.8655]
[1746468135571,24.04,145.72,145.67,6.8655]
[1746468136470,6.8646,145.7,145.68,6.8653]
[1746468136674,24.04,145.72,145.65,2.0699]
[1746468137271,6.8642,145.71,145.65,2.0699]
[1746468137472,24.04,145.72,145.65,2.0699]
[1746468137971,6.8646,145.7,145.67,6.8654]
[1746468138160,6.8646,145.7,145.65,2.0699]
[1746468138365,30.9037,145.72,145.69,6.8645]
[1746468138867,30.9037,145.72,145.65,2.0699]
[1746468139063,30.9037,145.72,145.66,24.04]
[1746468139472,30.9037,145.72,145.69,6.8645]
[1746468140064,30.9037,145.72,145.66,24.04]
[1746468140270,24.04,145.72,145.66,24.04]
[1746468140573,6.8632,145.73,145.67,2.1513]
[1746468140762,6.8632,145.73,145.67,4.3045]
[1746468141070,6.8628,145.74,145.67,4.3045]
[1746468141368,30.9025,145.75,145.67,15.80372007]
[1746468141569,24.04,145.78,145.67,15.80372007]
[1746468142271,6.8619,145.76,145.73,6.8626]
[1746468142669,24.04,145.78,145.73,6.8626]
[1746468142970,24.04,145.78,145.74,6.8623]
[1746468143373,6.8614,145.77,145.74,6.8623]
[1746468143876,6.8617,145.76,145.74,6.8623]
[1746468144171,6.8617,145.76,145.73,6.8627]
[1746468144562,24.04,145.78,145.73,6.8627]
[1746468144865,24.04,145.78,145.74,6.8624]
[1746468145675,6.8612,145.77,145.74,6.8624]
[1746468146370,24.04,145.78,145.71,2.0995]
[1746468146671,24.14,145.8,145.72,1.9804]
[1746468146871,24.14,145.8,145.72,4.1185]
[1746468147072,6.8605,145.79,145.72,4.1185]
[1746468147570,6.8607,145.78,145.72,4.1185]
[1746468148075,6.8619,145.76,145.72,4.1185]
[1746468148278,24.14,145.8,145.72,4.1185]
[1746468148573,24.14,145.8,145.73,6.8628]
[1746468149275,35.63922007,145.8,145.72,1.9804]
[1746468149473,2.0877,145.79,145.71,2.0995]
[1746468150673,6.8623,145.75,145.72,6.8631]
[1746468150875,6.8623,145.75,145.71,2.0995]
[1746468151371,2.0877,145.79,145.71,2.0995]
[1746468151875,6.8613,145.77,145.74,6.8621]
[1746468152573,6.8616,145.76,145.74,6.8621]
[1746468154677,6.8613,145.77,145.74,6.8621]
[1746468155174,6.8613,145.77,145.75,6.8618]
[1746468155371,35.63922007,145.8,145.74,24.14]
[1746468155372,24.14,145.8,145.74,24.14]
[1746468155674,2.0093,145.82,145.74,24.14]
[1746468155874,2.0093,145.82,145.76,6.8614]
[1746468157275,6.8604,145.79,145.76,6.8614]
[1746468157978,6.8604,145.79,145.77,6.8611]
[1746468158277,6.8606,145.78,145.76,6.8614]
[1746468158872,6.8604,145.79,145.77,6.8611]
[1746468159278,6.8604,145.79,145.74,24.14]
[1746468159479,6.8604,145.79,145.76,6.8613]
[1746468162184,6.8604,145.79,145.77,6.861]
[1746468163381,6.8604,145.79,145.76,6.8614]
[1746468163582,6.8607,145.78,145.76,6.8614]
[1746468164182,6.8604,145.79,145.76,6.8614]
[1746468165291,6.8607,145.78,145.76,6.8614]
[1746468165485,2.0093,145.82,145.75,7.8618]
[1746468166084,6.8612,145.77,145.75,7.8618]
[1746468166682,6.8608,145.78,145.76,6.8615]
[1746468167081,6.8608,145.78,145.75,1.0]
[1746468167282,6.8604,145.79,145.75,1.0]
[1746468167782,2.0093,145.82,145.75,7.8618]
[1746468168086,24.12,145.81,145.75,1.0]
[1746468168788,6.8604,145.79,145.77,6.861]
[1746468168987,6.8604,145.79,145.75,1.0]
[1746468169380,6.8604,145.79,145.76,6.8613]
[1746468169580,6.8604,145.79,145.75,1.0]
[1746468169881,6.8604,145.79,145.76,6.8612]
[1746468170686,6.8604,145.79,145.77,6.8611]
[1746468171590,6.8599,145.8,145.78,6.8605]
[1746468171989,6.8599,145.8,145.75,1.0]
[1746468172191,6.8599,145.8,145.77,6.8609]
[1746468172794,6.8602,145.79,145.76,6.8614]
[1746468173791,7.35544152,145.79,145.75,1.0]
[1746468174181,6.8607,145.78,145.75,7.8618]
[1746468174691,7.35544152,145.79,145.75,7.8618]
[1746468175191,6.8607,145.78,145.76,6.8616]
[1746468175489,7.35544152,145.79,145.75,1.0]
[1746468175879,7.35544152,145.77,145.75,1.0]
[1746468176688,6.8616,145.76,145.75,1.0]
[1746468184095,24.08,145.77,145.68,26.2166]
[1746468184395,15.64015454,145.76,145.68,24.08]
[1746468184596,15.64015454,145.76,145.69,6.8648]
[1746468184792,2.0382,145.75,145.69,6.8648]
[1746468185095,6.8639,145.72,145.69,6.8648]
[1746468185394,2.0382,145.75,145.69,6.8648]
[1746468185697,6.8639,145.72,145.69,6.8648]
[1746468187096,6.8641,145.71,145.69,6.8648]
[1746468188291,6.8644,145.7,145.68,30.9453]
[1746468188486,6.8644,145.7,145.68,6.8653]
[1746468188891,6.8644,145.7,145.67,6.8656]
[1746468189397,6.8644,145.7,145.65,106.99937594]
[1746468189599,6.8642,145.71,145.68,6.8651]
[1746468190197,6.8642,145.71,145.69,6.8648]
[1746468190395,24.1,145.73,145.65,106.99937594]
[1746468190595,24.1,145.76,145.65,132.23003048]
[1746468190796,24.1,145.76,145.73,6.8629]
[1746468191101,35.59775454,145.79,145.71,24.1]
[1746468191398,6.8607,145.78,145.75,6.8617]
[1746468192604,30.9605,145.79,145.76,6.8613]
[1746468192900,24.1,145.79,145.76,6.8613]
[1746468193202,6.8609,145.78,145.76,6.8613]
[1746468194402,6.8613,145.77,145.72,24.1]
[1746468195307,6.8613,145.77,145.75,6.8618]
[1746468195506,24.1,145.79,145.75,6.8618]
[1746468196006,6.8614,145.77,145.75,6.8618]
[1746468198102,6.8608,145.78,145.72,24.1]
[1746468198403,24.1,145.79,145.72,24.1]
[1746468198605,6.8613,145.77,145.74,6.8621]
[1746468200211,6.8613,145.77,145.75,6.8619]
[1746468203404,6.8613,145.77,145.74,6.8623]
[1746468204107,6.8619,145.76,145.73,6.8627]
[1746468204505,24.1,145.79,145.72,24.1]
[1746468204699,6.8623,145.75,145.72,30.9631]
[1746468205104,6.8628,145.74,145.72,24.1]
[1746468206409,6.8628,145.74,145.72,30.9634]
[1746468206602,6.8623,145.75,145.72,24.1]
[1746468206903,6.8623,145.75,145.73,6.8629]
[1746468207103,6.8618,145.76,145.73,6.8629]
[1746468207297,6.8618,145.76,145.72,24.1]
[1746468207495,6.8618,145.76,145.73,6.8629]
[1746468208105,6.8618,145.76,145.74,6.8624]
[1746468208306,35.59775454,145.79,145.72,24.1]
[1746468208507,24.1,145.79,145.72,24.1]
[1746468208699,24.1,145.79,145.76,6.8615]
[1746468208904,2.0401,145.81,145.76,6.8615]
[1746468209105,6.861,145.78,145.72,24.1]
[1746468209308,2.0401,145.81,145.75,6.8618]
[1746468211113,6.8611,145.78,145.75,6.8618]
[1746468211310,2.0401,145.81,145.75,6.8618]
[1746468212116,6.8612,145.77,145.75,6.8618]
[1746468212812,6.8608,145.78,145.76,6.8616]
[1746468213513,6.8608,145.78,145.75,6.8618]
[1746468214313,6.8608,145.78,145.76,6.8614]
[1746468214512,24.04,145.82,145.72,35.59775454]
[1746468214914,6.8595,145.81,145.72,35.59775454]
[1746468216213,6.8595,145.81,145.78,6.8603]
[1746468216421,6.8595,145.81,145.76,24.04]
[1746468216820,6.8595,145.81,145.78,6.8602]
[1746468217315,6.8598,145.8,145.78,6.8602]
[1746468217823,6.8595,145.81,145.78,6.8602]
[1746468218132,11.49775454,145.84,145.76,24.04]
[1746468218829,6.8585,145.83,145.76,24.04]
[1746468219028,6.8585,145.83,145.77,6.0958]
[1746468221227,6.8585,145.83,145.8,6.8593]
[1746468222330,11.49775454,145.89,145.82,6.8586]
[1746468222529,24.04,145.88,145.82,6.8586]
[1746468222734,6.8581,145.84,145.82,6.8586]
[1746468223428,6.8572,145.86,145.8,24.04]
[1746468223932,6.8572,145.86,145.83,6.8579]
[1746468224534,6.8566,145.87,145.84,6.8576]
[1746468226239,6.857,145.86,145.84,6.8576]
[1746468227240,6.857,145.86,145.83,6.8582]
[1746468229643,6.857,145.86,145.84,6.8577]
[1746468230943,6.8574,145.85,145.8,24.04]
[1746468231443,6.8574,145.85,145.82,6.8585]
[1746468233545,6.8574,145.85,145.83,6.8582]
[1746468236751,6.8571,145.86,145.83,6.8582]
[1746468237149,6.8571,145.86,145.84,6.8578]
[1746468238447,6.8571,145.86,145.83,6.8581]
[1746468238646,6.8574,145.85,145.83,6.8581]
[1746468239848,6.857,145.86,145.84,6.8578]
[1746468240148,6.857,145.86,145.8,24.04]
[1746468240447,24.02,145.91,145.8,24.04]
[1746468241049,6.8572,145.86,145.83,6.858]
[1746468241448,6.8572,145.86,145.8,24.04]
[1746468241843,6.8572,145.86,145.84,6.8576]
[1746468242147,6.8572,145.86,145.8,24.04]
[1746468242748,6.8572,145.86,145.84,6.8577]
[1746468243949,6.8572,145.86,145.83,6.858]
[1746468244249,6.8572,145.86,145.84,6.8577]
[1746468245450,6.8563,145.88,145.8,24.04]
[1746468246848,6.8563,145.88,145.85,6.857]
[1746468247153,24.02,145.91,145.84,24.02]
[1746468247345,2.1472,145.92,145.85,26.0437]
[1746468248051,6.8552,145.9,145.87,6.8564]
[1746468249451,6.8555,145.89,145.87,6.8564]
[1746468251652,6.856,145.88,145.86,6.8567]
[1746468252056,2.1472,145.92,145.86,6.8567]
[1746468252245,6.8557,145.89,145.87,6.8563]
[1746468252553,6.8557,145.89,145.85,26.0437]
[1746468252754,6.8557,145.89,145.86,6.8566]
[1746468253253,6.8559,145.88,145.86,6.8566]
[1746468253452,4.2268,145.93,145.85,30.8771]
[1746468253955,4.2268,145.93,145.85,24.02]
[1746468254858,6.8562,145.88,145.86,6.8569]
[1746468255962,6.8562,145.88,145.85,24.02]
[1746468257956,6.8566,145.87,145.85,24.02]
[1746468259664,6.8569,145.86,145.85,24.02]
[1746468261563,6.8578,145.85,145.82,35.0949]
[1746468269071,6.8571,145.86,145.83,6.8583]
[1746468269270,6.8571,145.86,145.82,28.2364]
[1746468269671,6.8571,145.86,145.83,6.8581]
[1746468269876,6.8571,145.86,145.83,14.20306687]
[1746468270080,6.8571,145.86,145.83,7.34496687]
[1746468270377,6.8571,145.86,145.83,14.20296687]
[1746468271078,4.2268,145.93,145.85,7.34496687]
[1746468271377,7.34496687,145.92,145.86,24.02]
[1746468271977,6.8557,145.89,145.86,30.8766]
[1746468272272,7.34496687,145.9,145.86,24.02]
[1746468272476,6.8564,145.87,145.86,24.02]
[1746468272675,6.8564,145.87,145.84,6.8578]
[1746468274185,6.8564,145.87,145.85,6.8573]
[1746468274779,6.8564,145.87,145.84,6.8575]
[1746468275379,6.8564,145.87,145.85,6.8573]
[1746468276886,6.8564,145.87,145.84,6.8576]
[1746468277983,6.8564,145.87,145.85,6.8573]
[1746468278380,6.8561,145.88,145.83,24.02]
[1746468278577,6.8561,145.88,145.85,6.8569]
[1746468279678,6.855,145.9,145.87,6.8564]
[1746468280078,28.2468,145.93,145.83,35.49776674]
[1746468280282,28.2468,145.93,145.89,6.8555]
[1746468280482,28.2468,145.93,145.87,24.02]
[1746468280784,6.8547,145.91,145.88,6.8556]
[1746468281383,6.8547,145.91,145.89,6.8554]
[1746468281585,6.8542,145.92,145.89,6.8554]
[1746468283280,6.8547,145.91,145.89,6.8554]
[1746468283586,28.2468,145.93,145.89,6.8554]
[1746468283778,6.8545,145.91,145.89,6.8554]
[1746468285989,28.2468,145.93,145.87,25.02]
[1746468286787,6.8557,145.89,145.87,31.8761]
[1746468287390,6.8559,145.88,145.87,1.0]
[1746468295692,6.8576,145.85,145.81,24.02]
[1746468296193,6.8576,145.85,145.82,6.8584]
[1746468297303,6.8576,145.85,145.83,6.8582]
[1746468298196,6.8578,145.84,145.82,6.8585]
[1746468298496,6.8578,145.84,145.81,24.02]
[1746468298906,6.8578,145.84,145.81,30.879]
[1746468300107,6.8583,145.83,145.81,30.879]
[1746468300304,24.02,145.86,145.81,24.02]
[1746468300507,24.02,145.86,145.78,24.02]
[1746468300808,6.8598,145.8,145.78,24.02]
[1746468301007,11.47776674,145.85,145.78,24.02]
[1746468302207,6.859,145.82,145.79,6.8597]
[1746468302403,6.859,145.82,145.78,24.02]
[1746468303110,6.859,145.82,145.8,6.8597]
[1746468303904,6.859,145.82,145.79,6.8599]
[1746468304612,6.859,145.82,145.8,6.8597]
[1746468304805,6.8593,145.81,145.78,24.02]
[1746468305108,6.8593,145.81,145.79,6.8599]
[1746468305406,6.859,145.82,145.79,6.8599]
[1746468306114,6.8593,145.81,145.79,6.8599]
[1746468306300,11.47776674,145.85,145.8,6.8596]
[1746468306912,6.859,145.82,145.8,6.8596]
[1746468307113,6.859,145.82,145.79,6.86]
[1746468308117,6.8593,145.81,145.79,6.86]
[1746468310217,6.859,145.82,145.79,6.86]
[1746468311016,6.8593,145.81,145.79,6.86]
[1746468316519,6.8588,145.82,145.8,6.8597]
[1746468316721,7.35181489,145.83,145.78,24.02]
[1746468317023,7.35181489,145.83,145.8,6.8593]
[1746468317024,14.21031489,145.83,145.8,6.8593]
[1746468317222,7.35181489,145.83,145.8,6.8593]
[1746468317617,6.859,145.82,145.8,6.8593]
[1746468318122,7.35181489,145.83,145.78,24.02]
[1746468318514,7.35181489,145.79,145.75,25.02]
[1746468318719,6.8609,145.78,145.75,25.02]
[1746468319024,7.35181489,145.79,145.75,25.02]
[1746468319215,7.35181489,145.79,145.75,31.8818]
[1746468319411,7.35181489,145.79,145.75,25.02]
[1746468319722,6.8609,145.78,145.75,31.8818]
[1746468319912,6.8609,145.78,145.75,25.02]
[1746468320116,24.02,145.82,145.75,25.02]
[1746468320316,6.86,145.8,145.75,25.02]
[1746468320517,24.02,145.82,145.75,25.02]
[1746468321015,24.02,145.85,145.75,27.1355]
[1746468321415,6.8588,145.82,145.75,27.1355]
[1746468321924,6.8594,145.81,145.78,6.8603]
[1746468322528,35.51226418,145.85,145.77,6.8609]
[1746468322821,35.51226418,145.85,145.75,27.1355]
[1746468323023,6.8612,145.77,145.75,25.02]
[1746468323517,11.49226418,145.82,145.75,25.02]
[1746468323712,6.8609,145.78,145.75,25.02]
[1746468323919,24.02,145.81,145.75,25.02]
[1746468324822,6.8608,145.78,145.76,6.8613]
[1746468325527,6.8604,145.79,145.76,6.8613]
[1746468325728,6.8604,145.79,145.77,6.8607]
[1746468326025,24.02,145.81,145.77,6.8607]
[1746468326326,6.8602,145.79,145.77,6.8607]
[1746468326727,24.02,145.81,145.75,25.02]
[1746468326925,6.8613,145.77,145.75,25.02]
[1746468327125,24.02,145.81,145.75,25.02]
[1746468327822,24.02,145.81,145.75,31.8818]
[1746468328228,6.8611,145.78,145.75,31.8818]
[1746468330524,24.02,145.81,145.75,25.02]
[1746468330730,25.9978,145.84,145.75,25.02]
[1746468330932,24.02,145.84,145.76,2.1574]
[1746468331826,30.8782,145.84,145.81,6.859]
[1746468332127,24.02,145.84,145.81,6.859]
[1746468332734,6.8585,145.83,145.81,6.859]
[1746468333028,6.8585,145.83,145.76,2.1574]
[1746468333424,6.8585,145.83,145.8,6.8594]